Cogmind - Beta 14 @@@ ROGUE MODE // 2025.01.08 @ 12:21:13 Player: puppuppit Result: Destroyed by as-75543 with Assembled Rifle Performance ------------- Evolutions (0) 0 Regions Visited (2) 400 Robots Destroyed (11) 55 Value Destroyed (348) 348 Prototype IDs (0) 0 Alien Tech Used (0) 0 Bonus (35) 35 TOTAL SCORE: 838 Bonus ------- Follower Combat Kills 35 Cogmind --------- Core Integrity 0/250 Matter 277/300 Energy 88/100 System Corruption 0% Temperature Cool (0) Movement Rolling (80) Location -10/Mines Parts ------- > --- POWER (1) -------- (None) > --- PROPULSION (2) --- Wheel > --- UTILITY (2) ------ Small Storage Unit Weapon Shielding > --- WEAPON (2) ------- Light Assault Rifle > --- INVENTORY (8) ---- Light Ion Engine Light Nuclear Core Compact Matter Pod (150) Structural Scanner Experimental Sensor Array Peak State ------------ > --- POWER ------------ Light Nuclear Core > --- PROPULSION ------- Wheel Wheel > --- UTILITY ---------- Small Storage Unit Structural Scanner > --- WEAPON ----------- Assault Rifle Light Assault Rifle > --- INVENTORY -------- Light Ion Engine Compact Matter Pod Experimental Sensor Array Weapon Shielding Light Assault Rifle [Rating: 10] Favorites ----------- Power Light Nuclear Core Engine Light Ion Engine Power Core Light Nuclear Core Propulsion Wheel Wheel Wheel Utility Small Storage Unit Device Structural Scanner Storage Small Storage Unit Protection Weapon Shielding Weapon Assault Rifle Ballistic Gun Assault Rifle Build | -11 -10 -10 ------- Run | Yrd Mat Min Slots Evolved . | . . . Power . | . . . Propulsion . | . . . Utility . | . . . Weapon . | . . . Parts Attached 15 | 6 7 2 Power 2 | 1 1 . Engine 1 | 1 . . Core 1 | . 1 . Reactor . | . . . Propulsion 6 | 2 4 . Treads . | . . . Leg . | . . . Wheel 6 | 2 4 . Hover . | . . . Flight . | . . . Utility 4 | 1 2 1 Device 1 | . 1 . Storage 1 | 1 . . Processor . | . . . Hackware . | . . . Protection 2 | . 1 1 Artifact . | . . . Weapon 3 | 2 . 1 Energy Gun . | . . . Energy Cannon . | . . . Ballistic Gun 3 | 2 . 1 Ballistic Cannon . | . . . Launcher . | . . . Special Weapon . | . . . Impact Weapon . | . . . Slashing Weapon . | . . . Piercing Weapon . | . . . Special Melee Weapon . | . . . Unidentified Prototypes . | . . . Parts Lost 5 | . 2 3 Power . | . . . Propulsion 3 | . 2 1 Utility . | . . . Weapon 2 | . . 2 Highest Loss Streak 3 | . 1 3 To Critical Strikes . | . . . Average Slot Usage (%) 90 | . 85 95 Engine 2 | . 4 . Core 10 | . 9 12 Wheel 20 | . 15 26 Device 11 | . 9 13 Storage 14 | . 14 14 Protection 2 | . 3 . Ballistic Gun 27 | . 28 27 Peak Build Rating 10 | 6 9 10 Average Rating 7 | 4 7 8 On Entrance 5 | . 6 9 Naked Turns . | . . . Heaviest Build 14 | 11 14 14 Greatest Support 26 | 26 26 20 Greatest Overweight (x) 4 | . 4 1 Average Overweight (x) . | . . . Largest Inventory Capacity 8 | 8 8 8 Average Capacity 7 | 6 8 8 Most Carried 6 | 1 3 6 Average Carried 3 | . 2 4 Final Capacity 8 | 8 8 8 Final Carried 5 | 1 3 5 Class Distribution -------------------- 100% | Mutant Dominant Class ---------------- Mutant | -10/Materials Mutant | -10/Mines Resources | -11 -10 -10 ----------- Run | Yrd Mat Min Matter Collected 528 | 101 398 29 Remotely . | . . . Salvage Created 413 | . 398 15 Parts 24 | . 24 . Haulers Intercepted . | . . . Recyclers Shooed 1 | . 1 . Parts Field Recycled . | . . . Retrieved Matter . | . . . Parts Self-Destructed . | . . . Prevented . | . . . Kills | -11 -10 -10 ------- Run | Yrd Mat Min Combat Hostiles Destroyed 11 | . 9 2 Guns 11 | . 9 2 Classes Destroyed 4 | . 3 1 Worker 1 | . 1 . Builder 1 | . 1 . Grunt 9 | . 9 . Assembled 2 | . . 2 Best Kill Streak 4 | . 4 2 Combat Bots Only 3 | . 3 2 Max Kills in Single Turn 1 | . 1 1 Gunslinging . | . . . Exploded . | . . . Melee . | . . . Uniques/NPCs Destroyed . | . . . Combat | -11 -10 -10 -------- Run | Yrd Mat Min Hostile Shots Fired 55 | . 33 22 Missed 11 | . 4 7 Damage Taken 698 | . 359 339 Core 251 | . 139 112 Absorbed by Shields . | . . . Redirected to Shielding 16 | . 16 . Core Remaining (%) 100 | 100 . . Volleys Fired 58 | . 48 10 Largest 2 | . 2 2 Hottest 40 | . 40 40 Shots Fired 112 | . 96 16 Gun 112 | . 96 16 Cannon . | . . . Launcher . | . . . Special . | . . . Kinetic 112 | . 96 16 Thermal . | . . . Explosive . | . . . Electromagnetic . | . . . Robot Hit Streak 16 | . 16 5 Robot Miss Streak 3 | . 3 2 Penetration Max . | . . . Secondary Targets . | . . . Shots Hit Robots 82 | . 71 11 Core Hits 30 | . 25 5 Critical Kills . | . . . Critical Parts Destroyed 2 | . 2 . Critical Strikes 2 | . 2 . Destroy 2 | . 2 . Melee Attacks . | . . . Impact . | . . . Slashing . | . . . Piercing . | . . . Sneak Attacks . | . . . Combat Hostiles . | . . . Follow-up Attacks . | . . . Damage Inflicted 877 | . 751 126 Guns 877 | . 751 126 Cannons . | . . . Explosions . | . . . Melee . | . . . Ramming . | . . . Kinetic 877 | . 751 126 Thermal . | . . . Explosive . | . . . Electromagnetic . | . . . Impact . | . . . Slashing . | . . . Piercing . | . . . Highest Corruption . | . . . Average Corruption . | . . . Corruption Purged . | . . . Corruption Blocked . | . . . Overload Shots . | . . . Overflow Damage . | . . . Projectiles . | . . . Explosions . | . . . Melee . | . . . Knockbacks . | . . . Impact . | . . . Kinetic . | . . . Secondary . | . . . Self-Inflicted Damage . | . . . Shots . | . . . Rammed . | . . . Targets Rammed . | . . . Kicked . | . . . Crushed . | . . . Highest Temperature 26 | . 20 26 Average Temperature 6 | . 6 6 Received Heat Transfer 238 | . 198 40 Siege Activations . | . . . Robots Corrupted . | . . . Combat Hostiles . | . . . Parts Fried . | . . . Impact Corruptions . | . . . Robots Melted . | . . . Combat Hostiles . | . . . Parts Melted . | . . . Heat Transferred . | . . . Parts Sabotaged . | . . . Parts Stolen . | . . . Parts Stripped . | . . . Power Chain Reactions . | . . . Alert | -11 -10 -10 ------- Run | Yrd Mat Min Peak Influence 248 | . 248 128 Initial 96 | . . 96 Average 114 | . 129 108 Maximum Alert Level 1 | . 1 . Low Security (%) 91 | 100 84 100 Level 1 8 | . 15 . Level 2 . | . . . Level 3 . | . . . Level 4 . | . . . Level 5 . | . . . High Security . | . . . Max Security . | . . . Squads Dispatched 2 | . 2 . Investigation 2 | . 2 . Extermination . | . . . Reinforcement . | . . . Assault . | . . . Garrison . | . . . Intercept . | . . . Searches Triggered . | . . . Construction Impeded . | . . . Haulers Reinforced . | . . . Active Scanning Responses . | . . . Cargo Convoy Interrupts . | . . . Stealth | -11 -10 -10 --------- Run | Yrd Mat Min Distress Signals 1 | . 1 . Communications Jammed . | . . . Distress Signals . | . . . Times Spotted 35 | . 12 23 Peak Tracking Total 17 | . 3 17 Tactical Retreats 2 | . . 2 Traps | -11 -10 -10 ------- Run | Yrd Mat Min Traps Triggered 2 | . 2 . Indirectly . | . . . Trap Hack Attempts . | . . . Triggered . | . . . Disarmed . | . . . Reprogrammed . | . . . Reused . | . . . Traps Extracted . | . . . Installed . | . . . Triggered . | . . . Machines | -11 -10 -10 ---------- Run | Yrd Mat Min Machines Disabled 1 | . 1 . Max in Single Turn 1 | . 1 . Machines Repaired . | . . . Machines Dismantled . | . . . Machines Sabotaged . | . . . Overloaded Fab Kills . | . . . Hacking | -11 -10 -10 --------- Run | Yrd Mat Min Machines Accessed 6 | . 6 . Terminals 4 | . 4 . Fabricators . | . . . Repair Stations . | . . . Recycling Units 2 | . 2 . Scanalyzers . | . . . Garrison Access . | . . . Total Hacks 14 | . 14 . Successful 6 | . 6 . Failed 7 | . 7 . Catastrophic 1 | . 1 . Database Lockouts 1 | . 1 . Manual 6 | . 6 . Terminals 11 | . 11 . Fabricators . | . . . Repair Stations . | . . . Recycling Units 3 | . 3 . Scanalyzers . | . . . Garrison Access . | . . . Terminal Hacks 4 | . 4 . Robot Analysis 2 | . 2 . Terminal Index 1 | . 1 . Locate Traps 1 | . 1 . Fabricator Hacks . | . . . Repair Station Hacks . | . . . Recycling Unit Hacks 2 | . 2 . Retrieve Components 2 | . 2 . Scanalyzer . | . . . Garrison Access Hacks . | . . . Unauthorized Hacks . | . . . Terminals . | . . . Fabricators . | . . . Repair Stations . | . . . Recycling Units . | . . . Scanalyzers . | . . . Garrison Access . | . . . Data Cores Recovered . | . . . Used . | . . . Hacking Detections 5 | . 5 . Full Trace Events 2 | . 2 . Feedback Events . | . . . Feedback Blocked . | . . . Robot Schematics Acquired . | . . . Robots Built . | . . . Authchips . | . . . Time . | . . . Total Robot Build Rating . | . . . Part Schematics Acquired . | . . . Parts Built . | . . . Authchips . | . . . Time . | . . . Total Part Build Rating . | . . . Parts Repaired . | . . . Time . | . . . Parts Recycled . | . . . Recycled Matter . | . . . Retrieved Matter . | . . . Retrieved Components 5 | . 5 . Parts Scanalyzed . | . . . Part Schematics Acquired . | . . . Parts Damaged . | . . . Bothacking | -11 -10 -10 ------------ Run | Yrd Mat Min Used RIF Installer . | . . . Robots Hacked . | . . . Non-combat . | . . . Combat . | . . . Robot Hacks Applied . | . . . Relay Couplers Released . | . . . Fabnet Peak Effective % . | . . . Robots Rewired . | . . . Allies Hacked . | . . . Hacks Repelled . | . . . Allies | -11 -10 -10 -------- Run | Yrd Mat Min Total Allies 1 | . . 1 Largest Group 1 | . . 1 Highest-Rated Group 31 | . . 31 Highest-Rated Ally 31 | . . 31 Total Orders . | . . . Ally Attacks 7 | . . 7 Total Damage 43 | . . 43 Kills 1 | . . 1 Allies Corrupted . | . . . Allies Melted . | . . . Intel | -11 -10 -10 ------- Run | Yrd Mat Min Robot Analysis Total 2 | . 2 . Derelict Logs Recovered 1 | . . 1 Drone Launches . | . . . Drone Recoveries . | . . . Exploration | -11 -10 -10 ------------- Run | Yrd Mat Min Turns Passed 721 | 37 380 304 Spaces Moved 571 | 32 202 337 Core 32 | 2 30 . Treads . | . . . Legs . | . . . Wheels 539 | 30 172 337 Hover . | . . . Flight . | . . . Fastest Speed 50 | 50 80 80 Average Speed 91 | 86 110 80 Slowest Speed 250 | 90 250 95 Overloaded Moves . | . . . Propulsion Burnouts . | . . . Robots Hopped . | . . . Cave-ins Triggered . | . . . Exploration Rate (%) 36 | 4 38 66 Regions Visited 2 Branch Regions 1 Pre-discovered Areas . | . . . Known Exits Taken . | . . . Unknown Exits Taken 2 | 1 1 . Scrap Searched 1 | . . 1 Spaces Dug . | . . . Terrain Destroyed . | . . . Melee . | . . . Projectile . | . . . AOE . | . . . Terrain Rammed . | . . . Walls Destroyed . | . . . Machines Disabled . | . . . Actions | -11 -10 -10 --------- Run | Yrd Mat Min Total 664 | 38 269 357 Wait 16 | . 11 5 Move 569 | 31 201 337 Hop . | . . . Pick Up 3 | 1 . 2 Fast Attach 10 | 6 4 . Attach 1 | . . 1 Detach 2 | . 1 1 Swap 4 | . 3 1 Drop 1 | . 1 . Fire 58 | . 48 10 Melee . | . . . Ram . | . . . Kick . | . . . Crush . | . . . Escape Stasis . | . . . Rewire . | . . . Trap . | . . . Miscellaneous . | . . . Route ------- -11/Scrapyard -10/Materials (discovered 2 exits: [*Mat] / [*Min]) -10/Mines (discovered 2 exits: [*Mat x2]) History --------- Turn | Location | Event 8 | -11/Scrapyard | Discovered new exit (range 16) 38 | -11/Scrapyard | Entered Materials 151 | -10/Materials | Discovered new exit (range 16) 214 | -10/Materials | Core integrity fell below 50% 248 | -10/Materials | Central database locked down 303 | -10/Materials | Build established: Mutant 406 | -10/Materials | Discovered new exit (range 9) 418 | -10/Materials | Entered Mines 421 | -10/Mines | Received a Mining Laser from a helpful Derelict 440 | -10/Mines | Met a Derelict bent on vengeance 496 | -10/Mines | Discovered new exit (range 6) 565 | -10/Mines | Found a damaged Exp. Sensor Array with a note attached 567 | -10/Mines | Found Prototype Device 601 | -10/Mines | Discovered new exit (range 11) 604 | -10/Mines | Learned Materials terminal intel 654 | -10/Mines | Assembled infested the area 659 | -10/Mines | Assisted by a Guerilla fighting off Assembled 710 | -10/Mines | Core integrity fell below 20% 714 | -10/Mines | Lost 3 allies 722 | -10/Mines | Destroyed by as-75543 with Assembled Rifle Last Messages --------------- 00688_ as-62216 destroyed. 00688_ as-80195 destroyed. 00688_ as-11483 destroyed. 00688_ as-13096 destroyed. 00688_ as-03847 destroyed. 00689_ U-05 Engineer destroyed. 00690_ Lgt. Assault Rifle destroyed. 00690_ as-17494 destroyed. 00690_ as-45695 destroyed. 00691_ K-01 Serf collects debris. 00694_ D-53 Grenadier knocked back. 00695_ as-31876 destroyed. 00695_ as-69527 destroyed. 00695_ as-94427 destroyed. 00695_ as-72199 destroyed. 00695_ D-53 Grenadier destroyed. 00698_ The unstable cave ceiling collapses. 00711_ Assault Rifle destroyed. 00714_ as-49242 destroyed. 00721_ as-43690 destroyed. Map ----- +----------------------------------------------------+ | ??????????????????????????????????????????????? | | ??????????????????????????????????????????????? | | ??????????????????????????????????????????????? | | ??????????????????????????????????????????????? | | ??????????????????????????????????????????????? | | ??????????????????????????????????????????????? | | ??????????????????????????????????????????????? | | ??????????????????????????????????????????????? | | ??????????????????????????????????????????????? | | ??????????????????????????????????????????????? | | ??????????????????????????????????????????????? | | ??????????????????????????????????????????????? | | ??????????????????????????????????????????????? | | ??????????????????????????????????????????????? | | ?????????????????????????????????????#####????? | | ????????????????????????????????????#######???? | | ??????????????????????????#####????### ###???? | | ??????????????????????????#####????## ##???? | | ?????????????????????????? ##????# ?????? | | ??????????????????????????## ##????? #?????? | | ??????????????????????????## ##??### ##?????? | | ??????????????????????????## ##??### ##?????? | | ??????????????????????????## ##??## ##?????? | | ??????? ????############## ##??## ##?????? | | ???????## ############# ###### ##?????? | | ???????### @% a ###### ##?????? | | ????????### ############ " ##?????? | | ?????????## ??? ################## | ##### ?? | | ??????????????????????????#########%= ###### ?? | | ??????????????????????????????###### |=%!* # ?? | | ??????????????????################## !#### ##?? | | ??????????????????##############%###=%#### ##?? | | ??????????????????## *%!% =%=###????? | | ??????????????????## !%[ %==% [! ## ???? | | ??????????????????## ###### ##=! %|###???? | | ????????????######## ###### ### "##???? | | ???????????######### ##??## ### ###???? | | ???????????### #### ##??## # ##???? | | ???????????## ##??## ###### | | ???????????## ########### # ###### | | ??????????### ########## ### # | | ?????????#### ###### ## ### | | ?????????### ##### % % #### | | ?????????## #### %=% ####### | | ????????### % ####?## " | | ?########## %" % ####???## " | | ########## ## ### ####???## " | | ### ## ### ##????## | | ## ## ######## | | ## ##### ######## | +----------------------------------------------------+ Best States ------------- Heat Dissipation 25 Energy Generation 14 Energy Capacity 160 Matter Stores 300 Matter Capacity 300 Sight Range 16 Terrain Scan Density 10 Weapon Shielding 33 Evasion (%) 44 Item Schematics ----------------- None Robot Schematics ------------------ None Fabricated ------------ Nothing Alien Tech Used ----------------- None Achievements -------------- None Challenges ------------ None Game ------ Seed TiamatSuspensionBeacon Manual? 0 Play Time 00:08:01 Cumulative 16.4 hours Start 2025.01.08 @ 12:15:34 End 2025.01.08 @ 12:21:13 Sessions 1 Manual Loads 0 Difficulty Rogue Special Mode None Game No. 12 Rogue 12 Adventurer 0 Explorer 0 Win Type - Total 0 Types 0/0/0/0/0/0/0/0/0 Lore% 16 Gallery% 19 Achievement% 28 Wizard Run 0 Options --------- Layout 0 ASCII 0 Keyboard 1 Movement Arrows Keybinds 0 Fullscreen 1 Font 12/Proggy Map View 83x54 Zoom Use 0% Tactical HUD 1 Map Filters NONE Filters NONE Steam 0 RUN: ce1f66bf-e3e8-4562-982d-cccc792e783f